bitfinex-derivatives/quotes_BTCF0:USTF0_20240910
["timestamp","ask_amount","ask_price","bid_price","bid_amount"]
[1725934983756,0.294893,56691.0,56690.0,0.05286666]
[1725934984459,0.383086,56691.0,56690.0,0.05286666]
[1725934984657,0.088194,56690.0,56689.0,0.05286666]
[1725934984857,0.088594,56690.0,56689.0,0.05286666]
[1725934985062,0.176788,56690.0,56689.0,0.05286666]
[1725934985360,0.088196,56689.0,56688.0,0.05286666]
[1725934985559,0.336792,56689.0,56688.0,0.05286666]
[1725934985955,0.248596,56689.0,56688.0,0.05286666]
[1725934986160,0.248596,56689.0,56687.0,0.07047087]
[1725934986161,0.1604,56689.0,56687.0,0.07047087]
[1725934986354,0.088201,56686.0,56684.0,0.17614387]
[1725934986557,0.088602,56685.0,56684.0,0.17614387]
[1725934986757,0.088202,56685.0,56684.0,0.28511619]
[1725934987261,0.088202,56685.0,56684.0,0.17614387]
[1725934987658,0.088202,56685.0,56684.0,0.28509926]
[1725934987860,0.088202,56685.0,56684.0,0.28511274]
[1725934988055,0.0004,56688.0,56687.0,0.088199]
[1725934988262,0.0004,56688.0,56687.0,0.2854631]
[1725934989679,0.088597,56688.0,56687.0,0.088599]
[1725934990273,0.088597,56688.0,56687.0,0.0004]
[1725934990569,0.184397,56688.0,56687.0,0.0014]
[1725934990959,0.185397,56688.0,56687.0,0.07386571]
[1725934991680,0.273594,56688.0,56687.0,0.07386571]
[1725934992667,0.273594,56688.0,56687.0,0.0034]
[1725934993469,0.30219035,56688.0,56687.0,0.0034]
[1725934994170,0.35079035,56688.0,56687.0,0.0034]
[1725934994571,0.35079123,56688.0,56687.0,0.0034]
[1725934994965,0.322194,56688.0,56687.0,0.0034]
[1725934995171,0.35079123,56688.0,56687.0,0.0034]
[1725934995464,0.35079123,56688.0,56683.0,0.0016]
[1725934995465,0.176406,56684.0,56683.0,0.0016]
[1725934995771,0.088221,56673.0,56672.0,0.0041]
[1725934995959,0.16,56676.0,56665.0,0.14107991]
[1725934996258,0.248227,56669.0,56665.0,0.088232]
[1725934997569,0.089227,56669.0,56665.0,0.001]
[1725934998067,0.089227,56669.0,56665.0,0.003]
[1725934998068,0.090227,56669.0,56665.0,0.003]
[1725934998272,0.090227,56669.0,56668.0,0.088228]
[1725934998273,0.002,56669.0,56668.0,0.088228]
[1725934999561,0.0008,56673.0,56672.0,0.088222]
[1725934999766,0.0008,56673.0,56672.0,0.28489564]
[1725934999969,0.0008,56673.0,56672.0,0.28489427]
[1725935000175,0.0008,56673.0,56672.0,0.19696909]
[1725935000378,0.0008,56673.0,56672.0,0.81425298]
[1725935000979,0.0008,56673.0,56672.0,1.41425298]
[1725935001279,0.0008,56673.0,56672.0,1.32632909]
[1725935001280,0.0028,56673.0,56672.0,1.32632909]
[1725935002173,0.0041,56680.0,56679.0,0.088211]
[1725935002369,0.16,56682.0,56675.0,0.08792796]
[1725935002574,0.16,56682.0,56679.0,0.07034409]
[1725935002872,0.088208,56681.0,56679.0,0.07034409]
[1725935003172,0.088208,56681.0,56678.0,0.088212]
[1725935003173,0.16,56682.0,56678.0,0.05276135]
[1725935003476,0.088213,56678.0,56677.0,0.05276135]
[1725935003666,0.16,56677.0,56676.0,0.05276135]
[1725935004776,0.248214,56677.0,56676.0,0.05276135]
[1725935006073,0.16,56677.0,56676.0,0.05277267]
[1725935007276,0.162,56677.0,56676.0,0.05777267]
[1725935007484,0.3678636,56677.0,56676.0,0.05777267]
[1725935007669,0.3678636,56677.0,56676.0,0.005]
[1725935008482,0.8971836,56677.0,56676.0,0.005]
[1725935008779,1.4971836,56677.0,56676.0,0.005]
[1725935009579,0.3678636,56677.0,56676.0,0.005]
[1725935009780,0.3678636,56677.0,56676.0,0.05777267]
[1725935010567,0.3678636,56677.0,56676.0,0.005]
[1725935010767,0.3678636,56677.0,56676.0,0.05777267]
[1725935011480,0.2078636,56677.0,56676.0,0.05777267]
[1725935011674,0.2078636,56677.0,56676.0,0.005]
[1725935012380,0.3678636,56677.0,56676.0,0.005]
[1725935012974,0.3678636,56677.0,56676.0,0.05779801]
[1725935013275,0.3678636,56677.0,56676.0,0.005]
[1725935013875,0.2796496,56677.0,56676.0,0.005]
[1725935014281,0.2796496,56677.0,56676.0,0.05779801]
[1725935014686,0.2796496,56677.0,56676.0,0.005]
[1725935016780,0.090214,56677.0,56676.0,0.093216]
[1725935018076,0.002,56677.0,56676.0,0.093216]
[1725935019591,0.178428,56677.0,56676.0,0.005]
[1725935021194,0.178428,56677.0,56676.0,0.07544606]
[1725935021705,0.178428,56677.0,56676.0,0.005]
[1725935022406,0.338428,56677.0,56676.0,0.005]
[1725935024207,0.338428,56677.0,56676.0,0.07544606]
[1725935024401,0.338428,56677.0,56676.0,0.005]
[1725935027512,0.178428,56677.0,56676.0,0.005]
[1725935028407,0.178428,56677.0,56676.0,0.09292796]
[1725935028601,0.090214,56677.0,56676.0,0.093216]
[1725935028810,0.090214,56677.0,56676.0,0.18114396]
[1725935029419,0.090214,56677.0,56676.0,0.093216]
[1725935030411,0.090214,56677.0,56676.0,0.18114396]
[1725935030913,0.090214,56677.0,56676.0,0.093216]
[1725935031312,0.090214,56677.0,56676.0,0.09292796]
[1725935031513,0.090214,56677.0,56676.0,0.005]
[1725935032720,0.178428,56677.0,56676.0,0.005]
[1725935033015,0.090214,56677.0,56676.0,0.005]
[1725935033416,0.178428,56677.0,56676.0,0.005]
[1725935035315,0.090214,56677.0,56676.0,0.005]
[1725935035518,0.178428,56677.0,56676.0,0.005]
[1725935038613,0.090214,56677.0,56676.0,0.005]
[1725935038906,0.178428,56677.0,56676.0,0.005]
[1725935039813,0.090214,56677.0,56676.0,0.005]
[1725935040226,0.135914,56677.0,56676.0,0.005]
[1725935041914,0.090214,56677.0,56676.0,0.1129234]
[1725935042921,0.090214,56677.0,56676.0,0.09319172]
[1725935043216,0.090214,56677.0,56676.0,0.20104758]
[1725935043924,0.090214,56677.0,56676.0,0.09318913]
[1725935044119,0.090214,56677.0,56676.0,0.20110615]
[1725935044719,0.090214,56677.0,56676.0,0.09318913]
[1725935045027,0.090214,56677.0,56676.0,0.20113206]
[1725935045715,0.090214,56677.0,56676.0,0.005]
[1725935045916,0.090214,56677.0,56676.0,0.20111994]
[1725935046927,0.090214,56677.0,56676.0,0.11294821]
[1725935047230,0.090214,56677.0,56676.0,0.20114835]
[1725935048313,0.090214,56677.0,56676.0,0.09320014]
[1725935048515,0.090214,56677.0,56676.0,0.2011568]
[1725935048718,0.090214,56677.0,56676.0,0.005]
[1725935051424,0.090214,56677.0,56676.0,0.20112813]
[1725935051823,0.090214,56677.0,56676.0,0.09320014]
[1725935052024,0.090214,56677.0,56676.0,0.20114486]
[1725935052327,0.090214,56677.0,56676.0,0.09320014]
[1725935052528,0.090214,56677.0,56676.0,0.20117307]
[1725935053124,0.090214,56677.0,56676.0,0.09320014]
[1725935053332,0.178428,56677.0,56676.0,0.005]
[1725935053629,0.090214,56677.0,56676.0,0.005]
[1725935054936,0.178428,56677.0,56676.0,0.005]
[1725935055439,0.090214,56677.0,56676.0,0.005]
[1725935055829,0.178428,56677.0,56676.0,0.005]
[1725935056029,0.090214,56677.0,56676.0,0.005]
[1725935056934,0.178428,56677.0,56676.0,0.005]
[1725935057330,0.090214,56677.0,56676.0,0.20118955]
[1725935057531,0.090214,56677.0,56676.0,0.09320014]
[1725935057732,0.178428,56677.0,56676.0,0.005]
[1725935057937,0.090214,56677.0,56676.0,0.005]
[1725935058634,0.090214,56677.0,56676.0,0.09320014]
[1725935059436,0.090214,56677.0,56676.0,0.2010998]
[1725935059932,0.090214,56677.0,56676.0,0.11289966]
[1725935060933,0.090214,56677.0,56676.0,0.20111566]
[1725935061230,0.002,56677.0,56676.0,0.32942304]
[1725935061437,0.002,56677.0,56676.0,0.37512304]
[1725935062333,0.002,56677.0,56676.0,0.24681566]
[1725935063238,0.002,56677.0,56676.0,0.27616163]
[1725935063729,0.090214,56677.0,56676.0,0.24681566]
[1725935063926,0.090214,56677.0,56676.0,0.21869603]
[1725935064126,0.178428,56677.0,56676.0,0.11289966]
[1725935064328,0.090214,56677.0,56676.0,0.09317004]
[1725935064530,0.090214,56677.0,56676.0,0.11268897]
[1725935068130,0.090214,56677.0,56676.0,0.11269111]
[1725935069032,0.090214,56677.0,56676.0,0.20085573]
[1725935069342,0.090214,56677.0,56676.0,0.005]
[1725935070335,0.090214,56677.0,56676.0,0.09316462]
[1725935072644,0.090214,56677.0,56676.0,0.005]
[1725935073234,0.090214,56677.0,56676.0,0.09316462]
[1725935073539,0.090214,56677.0,56676.0,0.1126753]
[1725935073837,0.090214,56677.0,56676.0,0.20084758]
[1725935074038,0.090214,56677.0,56676.0,0.09317228]
[1725935074643,0.090214,56677.0,56676.0,0.20082027]
[1725935075043,0.090214,56677.0,56676.0,0.20082118]
[1725935075645,0.002,56677.0,56676.0,0.20086601]
[1725935076532,0.002,56677.0,56676.0,0.32886698]
[1725935076744,0.002,56677.0,56676.0,0.20086601]
[1725935076937,0.002,56677.0,56676.0,0.3288186]
[1725935077240,0.0041,56684.0,56677.0,0.52932]
[1725935077450,0.088204,56684.0,56683.0,0.08854047]
[1725935078245,0.088204,56684.0,56683.0,0.0004]
[1725935078541,0.088204,56684.0,56683.0,0.19587526]
[1725935078738,0.088204,56684.0,56683.0,0.28408026]
[1725935079138,0.088204,56684.0,56683.0,0.17674547]
[1725935079345,0.089204,56684.0,56683.0,0.17874547]
[1725935080244,0.090204,56684.0,56683.0,0.090605]
[1725935080436,0.002,56684.0,56683.0,0.090605]
[1725935080936,0.002,56684.0,56683.0,0.17874547]
[1725935081140,0.002,56684.0,56683.0,0.12018924]
[1725935081339,0.002,56684.0,56683.0,0.12418924]
[1725935082146,0.002,56684.0,56683.0,0.39126925]
[1725935082937,0.002,56684.0,56683.0,0.28418924]
[1725935083137,0.002,56684.0,56683.0,0.39104239]
[1725935083838,0.002,56684.0,56683.0,1.52028239]
[1725935087249,0.002,56684.0,56683.0,1.60827579]
[1725935088753,0.002,56684.0,56683.0,1.52028239]
[1725935088957,0.002,56684.0,56683.0,1.60848739]
[1725935089146,0.002,56684.0,56683.0,1.52028239]
[1725935089750,0.002,56684.0,56683.0,1.71425595]
[1725935090060,0.002,56684.0,56683.0,1.62605095]
[1725935090251,0.002,56684.0,56683.0,1.52028239]
[1725935090451,0.002,56684.0,56683.0,1.60848739]
[1725935090850,0.002,56684.0,56683.0,1.52028239]
[1725935091150,0.002,56684.0,56683.0,1.71405444]
[1725935091349,0.002,56684.0,56683.0,1.52028239]
[1725935092160,0.002,56684.0,56683.0,1.71403067]
[1725935092461,0.002,56684.0,56683.0,1.62582567]
[1725935092645,0.002,56684.0,56683.0,1.52028239]
[1725935092851,0.002,56684.0,56683.0,1.71403067]
[1725935093049,0.002,56684.0,56683.0,1.71374043]
[1725935093248,0.002,56684.0,56683.0,1.51999215]
[1725935093446,0.002,56684.0,56683.0,1.60819715]
[1725935093965,0.002,56684.0,56683.0,1.71374043]
[1725935094260,0.002,56684.0,56683.0,1.51999215]
[1725935095553,0.002,56684.0,56683.0,1.60819715]
[1725935095859,0.092293,56691.0,56690.0,0.088194]
[1725935095860,0.0041,56691.0,56690.0,0.088194]
[1725935096060,0.139308,56695.0,56694.0,0.088188]
[1725935096261,0.137788,56695.0,56694.0,0.088188]
[1725935096967,0.137788,56695.0,56694.0,0.14094966]
[1725935097266,0.143788,56695.0,56694.0,0.14094966]
[1725935098069,0.143788,56695.0,56694.0,0.24094966]
[1725935098563,0.143788,56695.0,56694.0,0.088188]
[1725935099769,0.150788,56695.0,56694.0,0.088188]
[1725935102365,0.088188,56694.0,56691.0,0.0703521]
[1725935102663,0.088188,56694.0,56693.0,0.05278722]
[1725935102664,0.176376,56694.0,56693.0,0.05278722]
[1725935103867,0.179376,56694.0,56693.0,0.05278722]
[1725935104164,0.095188,56694.0,56691.0,0.0703521]
[1725935104365,0.0004,56692.0,56691.0,0.0703521]
[1725935104863,0.088193,56691.0,56690.0,0.0004]
[1725935105060,0.134093,56691.0,56690.0,0.0004]
[1725935105463,0.222286,56691.0,56690.0,0.0004]
[1725935106361,0.134093,56691.0,56690.0,0.0004]
[1725935106769,0.134093,56691.0,56690.0,0.088594]
[1725935106965,0.0004,56691.0,56690.0,0.248594]
[1725935107466,0.0004,56691.0,56690.0,0.0004]
[1725935107467,0.176786,56691.0,56690.0,0.0004]
[1725935107664,0.20538015,56691.0,56690.0,0.0004]
[1725935107858,0.336786,56691.0,56690.0,0.0004]
[1725935108066,0.36538075,56691.0,56690.0,0.0004]
[1725935108865,0.36838075,56691.0,56690.0,0.0004]
[1725935109464,0.47310976,56691.0,56690.0,0.0004]
[1725935109971,0.36838075,56691.0,56690.0,0.0004]
[1725935110468,1.49758075,56691.0,56690.0,0.0004]
[1725935110667,0.36838075,56691.0,56690.0,0.0004]
[1725935110861,0.47330708,56691.0,56690.0,0.0004]
[1725935111267,0.36838075,56691.0,56690.0,0.0004]
[1725935111869,0.091593,56691.0,56690.0,0.0707521]
[1725935112171,0.091593,56691.0,56690.0,0.19549486]
[1725935112172,0.0034,56691.0,56690.0,0.19549486]
[1725935112354,0.0034,56691.0,56690.0,0.0004]
[1725935112872,0.0034,56691.0,56690.0,0.10751291]
[1725935113769,0.0034,56691.0,56690.0,0.19570691]
[1725935116367,0.0034,56691.0,56690.0,0.19601101]
[1725935116568,0.0034,56691.0,56690.0,0.2260607]
[1725935117270,0.0034,56691.0,56690.0,0.19601101]
[1725935117571,0.091593,56691.0,56690.0,0.195947]
[1725935117771,0.091593,56691.0,56690.0,0.19608432]
[1725935118369,0.091593,56691.0,56690.0,0.10795433]
[1725935118561,0.091593,56691.0,56690.0,0.19608608]
[1725935119575,0.091593,56691.0,56690.0,0.08853175]
[1725935119766,0.091593,56691.0,56690.0,0.0004]
[1725935120474,0.091593,56691.0,56690.0,0.088594]
[1725935122472,0.091593,56691.0,56690.0,0.0004]
[1725935122983,0.12018658,56691.0,56690.0,0.0004]
[1725935123279,0.091593,56691.0,56690.0,0.0004]
[1725935125768,0.091593,56691.0,56690.0,0.088594]
[1725935125969,0.091593,56691.0,56690.0,0.0004]
[1725935126674,0.091593,56691.0,56690.0,0.088594]
[1725935126871,0.091593,56691.0,56690.0,0.19605252]
[1725935127470,0.0034,56691.0,56690.0,0.19605252]
[1725935128184,0.0034,56691.0,56690.0,0.29605252]
[1725935130382,0.091593,56691.0,56690.0,0.29605252]
[1725935132376,0.0034,56691.0,56690.0,0.4015958]
[1725935132582,0.0034,56691.0,56690.0,0.40183199]
[1725935132885,0.0034,56691.0,56690.0,0.29605252]
[1725935134173,0.0034,56691.0,56690.0,0.40181265]
[1725935134782,0.0034,56691.0,56690.0,0.188594]
[1725935136087,0.0034,56691.0,56690.0,0.276788]
[1725935136592,0.10493879,56698.0,56691.0,0.088193]
[1725935136887,0.02858917,56697.0,56696.0,0.088185]
[1725935137091,0.10493879,56700.0,56699.0,0.08818]
[1725935137292,0.10493879,56701.0,56700.0,0.088179]
[1725935137606,0.19311479,56702.0,56701.0,0.088177]
[1725935137794,0.23352647,56702.0,56699.0,0.0004]
[1725935137991,0.088191,56693.0,56692.0,0.088191]
[1725935138176,0.21717868,56693.0,56692.0,0.088191]
[1725935138379,0.088193,56691.0,56690.0,0.088594]
[1725935138591,0.11718068,56691.0,56690.0,0.0004]
[1725935138779,0.22212764,56691.0,56690.0,0.0004]
[1725935139179,0.22212764,56691.0,56687.0,0.02941216]
[1725935139180,0.088194,56690.0,56689.0,0.088196]
[1725935139386,0.02898768,56690.0,56689.0,0.088196]
[1725935141290,0.02998768,56690.0,56689.0,0.088196]
[1725935141782,0.0014,56690.0,56689.0,0.19559575]
[1725935145987,0.0014,56690.0,56689.0,0.19553648]
[1725935146191,0.0014,56690.0,56689.0,0.36435148]
[1725935146490,0.0014,56690.0,56689.0,0.47011161]
[1725935146794,0.0014,56690.0,56689.0,0.36435148]
[1725935146998,0.0014,56690.0,56689.0,0.20435148]
[1725935147191,0.0014,56690.0,56689.0,0.19553648]
[1725935148492,0.0014,56690.0,56689.0,0.30129661]
[1725935149291,0.0014,56690.0,56689.0,0.31020813]
[1725935149896,0.0014,56690.0,56689.0,0.09710752]
[1725935150191,0.0014,56690.0,56689.0,0.088196]
[1725935150690,0.0014,56690.0,56689.0,0.1410725]
[1725935153393,0.089594,56690.0,56689.0,0.1410725]
[1725935153595,0.089594,56690.0,56689.0,0.088196]
[1725935156599,0.089594,56690.0,56684.0,0.14745236]
[1725935156600,0.088197,56688.0,56687.0,0.1410745]
[1725935156894,0.088597,56688.0,56687.0,0.19663181]
[1725935158397,0.088597,56688.0,56687.0,0.19963181]
[1725935158991,0.0004,56688.0,56687.0,0.19963181]
[1725935159596,0.0004,56688.0,56687.0,0.20063181]
[1725935160297,0.0004,56688.0,56687.0,0.30639194]
[1725935160492,0.0004,56688.0,56687.0,0.39458568]
[1725935160689,0.0004,56688.0,56687.0,0.28883081]
[1725935161394,0.0041,56696.0,56687.0,0.28883081]
[1725935161395,0.0041,56696.0,56695.0,0.088186]
[1725935161587,0.0004,56700.0,56699.0,0.08818]
[1725935161793,0.0481,56707.0,56699.0,0.08818]
[1725935161794,0.0522,56707.0,56699.0,0.10883381]
[1725935161987,0.0041,56710.0,56706.0,0.1604]
[1725935162291,0.0478,56712.0,56711.0,0.088161]
[1725935162490,0.0478,56712.0,56711.0,0.088561]
[1725935163097,0.088157,56714.0,56712.0,0.08816]
[1725935163305,0.088157,56714.0,56713.0,0.0004]
[1725935163498,0.02896312,56715.0,56713.0,0.14132797]
[1725935163691,0.0481,56717.0,56714.0,0.21316997]
[1725935163998,0.0041,56722.0,56721.0,0.088146]
[1725935164191,0.0041,56729.0,56725.0,0.088139]
[1725935164393,0.0481,56730.0,56728.0,0.05315752]
[1725935164593,0.0041,56736.0,56729.0,0.1604]
[1725935164895,0.16,56730.0,56729.0,0.05275752]
[1725935165195,0.16,56730.0,56721.0,0.0004]
[1725935165196,0.76,56730.0,56721.0,0.0004]
[1725935165397,0.5752,56735.0,56721.0,0.0004]
[1725935165398,0.0004,56722.0,56721.0,0.0004]
[1725935166095,0.0004,56722.0,56718.0,0.05275752]
[1725935166292,0.0004,56719.0,56717.0,0.14090952]
[1725935166601,0.0004,56719.0,56717.0,0.088152]
[1725935166798,0.0004,56718.0,56717.0,0.088152]
[1725935167003,0.0004,56719.0,56717.0,0.14090952]
[1725935167196,0.0004,56719.0,56718.0,0.0004]
[1725935167704,0.0004,56719.0,56718.0,0.088551]
[1725935168595,0.0024,56719.0,56718.0,0.088551]
[1725935169495,0.0044,56719.0,56718.0,0.088551]
[1725935169917,0.0004,56719.0,56718.0,0.088551]
[1725935170102,0.0054,56719.0,56718.0,0.088551]
[1725935171894,0.0024,56719.0,56718.0,0.088551]
[1725935172100,0.0054,56719.0,56718.0,0.088551]
[1725935172596,0.0054,56719.0,56716.0,0.088152]
[1725935172597,0.08680679,56719.0,56716.0,0.088152]
[1725935172903,0.17445823,56717.0,56716.0,0.088152]
[1725935173102,0.17445823,56717.0,56707.0,0.0041]
[1725935173103,0.83845638,56717.0,56707.0,0.0041]
[1725935173300,0.1604,56708.0,56703.0,0.0041]
[1725935173501,0.0004,56704.0,56698.0,0.02889162]
[1725935173695,0.0004,56699.0,56698.0,0.088182]
[1725935173893,0.0004,56699.0,56698.0,0.248182]
[1725935173894,0.15078093,56699.0,56698.0,0.248182]
[1725935174094,0.20320981,56699.0,56698.0,0.248182]
[1725935176297,0.20420981,56699.0,56698.0,0.261182]
[1725935176495,0.08240679,56699.0,56698.0,0.261182]
[1725935176894,0.14070917,56699.0,56698.0,0.261182]
[1725935178407,0.13970917,56699.0,56698.0,0.254182]
[1725935178596,0.13970917,56699.0,56698.0,0.248182]
[1725935178994,0.14170917,56699.0,56698.0,0.261182]
[1725935179610,0.15704959,56704.0,56698.0,0.261182]
[1725935179611,0.0004,56704.0,56703.0,0.088174]
[1725935179810,0.0004,56704.0,56703.0,0.088574]
[1725935182510,0.0004,56704.0,56703.0,0.15867898]
[1725935183002,0.0014,56704.0,56703.0,0.16667898]
[1725935183198,0.249572,56704.0,56703.0,0.0084]
[1725935183913,0.296872,56704.0,56703.0,0.0164]
[1725935184905,0.136872,56704.0,56703.0,0.104574]
[1725935185208,0.0024,56704.0,56703.0,0.15719032]
[1725935185410,0.0014,56704.0,56703.0,0.14919032]
[1725935185708,0.0014,56704.0,56703.0,0.099574]
[1725935186504,0.0004,56704.0,56703.0,0.092574]
[1725935187216,0.0004,56704.0,56703.0,0.089574]
[1725935187405,0.0014,56704.0,56703.0,0.095574]
[1725935187716,0.0014,56704.0,56703.0,0.16467898]
[1725935187904,0.0014,56704.0,56703.0,0.094574]
[1725935188104,0.0014,56704.0,56703.0,0.088574]
[1725935188105,0.0004,56704.0,56703.0,0.088574]
[1725935188306,0.0004,56704.0,56703.0,0.16267898]
[1725935188503,0.0004,56704.0,56703.0,0.1806465]
[1725935188707,0.0004,56704.0,56703.0,0.20136559]
[1725935189012,0.0004,56704.0,56703.0,0.28922797]
[1725935189214,0.0004,56704.0,56703.0,0.20138255]
[1725935189606,0.0004,56704.0,56703.0,0.35838255]
[1725935189806,0.0014,56704.0,56703.0,0.36438255]
[1725935190206,0.0014,56704.0,56703.0,0.20338255]
[1725935190808,0.0014,56704.0,56703.0,0.20838255]
[1725935191611,0.0014,56704.0,56703.0,0.20338255]
[1725935191814,0.0014,56704.0,56703.0,0.20838255]
[1725935192022,0.0004,56704.0,56703.0,0.20538255]
[1725935192608,0.0004,56704.0,56703.0,0.20238255]
[1725935192809,0.0014,56704.0,56703.0,0.21038255]
[1725935193115,0.0014,56704.0,56703.0,0.24028783]
[1725935193315,0.0004,56704.0,56703.0,0.23228783]
[1725935193517,0.0004,56704.0,56703.0,0.23528783]
[1725935193718,0.0004,56704.0,56703.0,0.23028783]
[1725935194018,0.0024,56704.0,56703.0,0.24042618]
[1725935194511,0.0024,56704.0,56703.0,0.13147928]
[1725935194719,0.0014,56704.0,56703.0,0.12547928]
[1725935195515,0.0004,56704.0,56703.0,0.11947928]
[1725935195719,0.0014,56704.0,56703.0,0.12647928]
[1725935195916,0.0014,56704.0,56703.0,0.13147928]
[1725935196104,0.0004,56704.0,56703.0,0.12347928]
[1725935196303,0.0004,56704.0,56703.0,0.12547928]
[1725935196816,0.0014,56704.0,56703.0,0.13147928]
[1725935197515,0.0024,56704.0,56703.0,0.13347928]
[1725935198317,0.0014,56704.0,56703.0,0.13147928]
[1725935198915,0.02898349,56704.0,56703.0,0.12347928]
[1725935199112,0.02998349,56704.0,56703.0,0.12747928]
[1725935199623,0.03098349,56704.0,56703.0,0.13147928]
[1725935200319,0.03098349,56704.0,56703.0,0.13447928]
[1725935200724,0.02998349,56704.0,56703.0,0.13247928]
[1725935201509,0.02998349,56704.0,56703.0,0.12747928]
[1725935201715,0.10748357,56704.0,56703.0,0.13447928]
[1725935201922,0.03098349,56704.0,56703.0,0.13147928]
[1725935202417,0.0024,56704.0,56703.0,0.13147928]
[1725935202620,0.0024,56704.0,56703.0,0.37382022]
[1725935203327,0.0024,56704.0,56703.0,0.37082022]
[1725935203824,0.0014,56704.0,56703.0,0.36882022]
[1725935204019,0.0014,56704.0,56703.0,0.12947928]
[1725935204325,0.0014,56704.0,56703.0,0.36883142]
[1725935204731,0.0024,56704.0,56703.0,0.37083142]
[1725935204926,0.0024,56704.0,56703.0,0.37383142]
[1725935205518,0.0014,56704.0,56703.0,0.36483142]
[1725935205717,0.0024,56704.0,56703.0,0.37383142]
[1725935207331,0.0014,56704.0,56703.0,0.36683142]
[1725935207532,0.0024,56704.0,56703.0,0.37383142]
[1725935207829,0.0024,56704.0,56703.0,0.24367468]
[1725935209328,0.0024,56704.0,56703.0,0.24387195]
[1725935209527,0.0024,56704.0,56703.0,0.13447928]
[1725935210243,0.0024,56704.0,56703.0,0.18736051]
[1725935213635,0.0024,56704.0,56703.0,0.18736808]
[1725935214920,0.0024,56704.0,56703.0,0.13447928]
[1725935217631,0.0024,56704.0,56703.0,0.37451251]
[1725935219728,0.090572,56704.0,56703.0,0.28633851]
[1725935219926,0.178744,56704.0,56703.0,0.12590612]
[1725935220138,0.090572,56704.0,56703.0,0.25660417]
[1725935220439,0.090572,56704.0,56703.0,0.25656218]
[1725935221228,0.089572,56704.0,56703.0,0.12090612]
[1725935221935,0.278744,56704.0,56703.0,0.12490612]
[1725935222137,1.495996,56704.0,56703.0,0.0124]
[1725935222340,1.495996,56704.0,56703.0,0.08293109]
[1725935222634,1.495996,56704.0,56703.0,0.06530003]
[1725935222838,1.494996,56704.0,56703.0,0.06230003]
[1725935223234,1.494996,56704.0,56703.0,0.0094]
[1725935223431,1.493996,56704.0,56703.0,0.0034]
[1725935223637,1.493996,56704.0,56703.0,0.0064]
[1725935224143,1.553996,56704.0,56703.0,0.0064]
[1725935229036,0.176366,56697.0,56696.0,0.05290003]
[1725935229240,0.17637,56696.0,56695.0,0.05290003]
[1725935229440,0.176372,56695.0,56694.0,0.05290003]
[1725935229638,0.176772,56695.0,56694.0,0.05290003]
[1725935229843,0.176372,56695.0,56694.0,0.05290003]
[1725935231146,0.177372,56695.0,56694.0,0.05890003]
[1725935232148,0.177372,56695.0,56694.0,0.006]
[1725935233044,0.178372,56695.0,56694.0,0.013]
[1725935234236,0.20584377,56695.0,56694.0,0.013]
[1725935234946,0.20584377,56695.0,56694.0,0.06575548]
[1725935235441,0.20584377,56695.0,56694.0,0.013]
[1725935235645,0.20584377,56695.0,56694.0,0.06575548]
[1725935235832,0.20584377,56695.0,56694.0,0.013]
[1725935238835,0.29402977,56695.0,56694.0,0.06574466]
[1725935239036,0.29402977,56695.0,56694.0,0.013]
[1725935244149,1.42318977,56695.0,56694.0,0.013]
[1725935247646,1.4517854,56695.0,56694.0,0.013]
[1725935247845,0.8517854,56695.0,56694.0,0.013]
[1725935248149,1.4517854,56695.0,56694.0,0.013]
[1725935248545,0.95687319,56695.0,56694.0,0.013]
[1725935248745,0.8517854,56695.0,56694.0,0.013]
[1725935249237,1.4517854,56695.0,56694.0,0.013]
[1725935249437,0.8517854,56695.0,56694.0,0.013]
[1725935249951,0.90316926,56695.0,56694.0,0.013]
[1725935250149,1.50316926,56695.0,56694.0,0.013]
[1725935251150,0.90316926,56695.0,56694.0,0.013]
[1725935252246,1.02502502,56695.0,56694.0,0.013]
[1725935252448,1.02402502,56695.0,56694.0,0.009]
[1725935252946,1.62302502,56695.0,56694.0,0.005]
[1725935253950,1.62302502,56695.0,56694.0,0.002]
[1725935254150,1.72302502,56695.0,56694.0,0.004]
[1725935254351,1.12302502,56695.0,56694.0,0.004]
[1725935254557,1.12302502,56695.0,56694.0,0.003]
[1725935254755,0.92118977,56695.0,56694.0,0.003]
[1725935255652,1.52118977,56695.0,56694.0,0.001]
[1725935255951,0.176378,56693.0,56692.0,0.05274466]
[1725935256151,0.176378,56693.0,56691.0,0.05274466]
[1725935256152,0.176382,56692.0,56691.0,0.05274466]
[1725935256452,0.276382,56692.0,56691.0,0.05274466]
[1725935257152,0.1,56692.0,56689.0,0.07053109]
[1725935257356,0.1004,56690.0,56689.0,0.07053109]
[1725935258758,0.276788,56690.0,56689.0,0.07053109]
[1725935259457,0.276788,56690.0,56689.0,0.07153109]
[1725935260660,0.276788,56690.0,56689.0,0.07353109]
[1725935261261,0.364982,56690.0,56689.0,0.003]
[1725935261462,0.364982,56690.0,56689.0,0.073482]
[1725935261653,0.44470108,56690.0,56689.0,0.003]
[1725935262658,0.44470108,56690.0,56689.0,0.002]
[1725935263664,0.088205,56683.0,56681.0,0.184008]
[1725935263966,0.11720077,56683.0,56681.0,0.184008]
[1725935265066,0.11720077,56683.0,56681.0,0.0958]
[1725935265067,0.29016343,56683.0,56681.0,0.0958]
[1725935265457,0.29216343,56683.0,56682.0,0.0138]
[1725935265657,0.29216343,56683.0,56682.0,0.102007]
[1725935266159,0.17030767,56683.0,56682.0,0.102007]
[1725935267364,0.29289849,56683.0,56682.0,0.102007]
[1725935268065,0.17030767,56683.0,56682.0,0.102007]
[1725935268266,0.22972186,56683.0,56682.0,0.102007]
[1725935268863,0.32972186,56683.0,56682.0,0.102007]
[1725935269064,0.48545171,56683.0,56682.0,0.0138]
[1725935269261,0.27881,56683.0,56682.0,0.0138]
[1725935269462,0.48543623,56683.0,56682.0,0.0138]